bitfinex-derivatives/quotes_ETHF0:USTF0_20250824
["timestamp","ask_amount","ask_price","bid_price","bid_amount"]
[1756064767967,3.9008,4828.7,4828.1,0.08545044]
[1756064768173,1.1465,4828.7,4828.1,0.08545044]
[1756064768464,3.9008,4828.5,4826.0,1.0329]
[1756064768672,1.7096,4828.4,4826.0,1.0329]
[1756064768864,1.7096,4828.4,4826.9,3.2078]
[1756064769175,1.1465,4828.5,4827.5,3.2078]
[1756064769564,1.7096,4829.3,4826.8,1.8051]
[1756064769565,4.9174,4829.3,4828.0,3.2078]
[1756064769765,3.2078,4829.9,4828.1,2.1443]
[1756064769975,3.2078,4829.9,4828.8,3.2078]
[1756064770181,3.2078,4829.9,4828.9,1.0329]
[1756064770468,3.2078,4829.9,4828.1,1.1114]
[1756064770674,3.2078,4829.9,4828.8,3.2078]
[1756064770875,1.7096,4830.3,4829.3,3.2078]
[1756064771066,1.7096,4830.3,4828.2,3.2078]
[1756064771271,1.7096,4830.3,4828.7,3.2078]
[1756064771475,3.2078,4829.9,4828.1,1.1114]
[1756064771672,5.1586,4830.3,4828.4,0.4143]
[1756064771871,5.1586,4830.3,4828.1,1.1114]
[1756064771872,1.1465,4829.8,4828.0,1.0329]
[1756064772073,1.1465,4829.8,4829.0,0.41424]
[1756064772275,1.1465,4829.8,4828.6,3.2078]
[1756064772777,1.1465,4829.8,4828.1,1.1114]
[1756064772977,1.1465,4829.8,4827.8,1.8051]
[1756064772978,2.7543,4829.6,4827.8,1.8051]
[1756064773179,3.9008,4829.1,4827.4,3.2078]
[1756064773373,3.9008,4828.5,4827.4,3.2078]
[1756064773674,3.9008,4828.5,4825.7,1.03633]
[1756064773675,1.1465,4827.4,4825.4,3.2078]
[1756064774071,1.1465,4827.4,4826.4,0.41447]
[1756064774273,3.2078,4828.1,4826.5,3.2078]
[1756064774470,3.2078,4828.1,4827.0,3.2078]
[1756064774873,3.2078,4828.1,4827.5,3.2078]
[1756064775079,3.2078,4828.1,4827.8,1.0329]
[1756064775273,1.1465,4829.2,4828.0,3.2078]
[1756064775474,3.2078,4829.6,4828.5,3.2078]
[1756064775670,0.4633796,4829.5,4828.5,3.2078]
[1756064775868,1.7096,4830.2,4829.4,0.41421]
[1756064776075,0.46363361,4830.1,4830.0,1.0329]
[1756064776379,0.46363361,4830.1,4830.0,3.9494]
[1756064776576,0.46363361,4830.1,4829.6,3.2078]
[1756064776770,0.46363361,4830.0,4829.7,1.8051]
[1756064776966,3.9008,4829.7,4828.4,1.8051]
[1756064777173,0.46363361,4829.6,4828.9,0.41426]
[1756064777379,3.2078,4829.3,4828.5,3.2078]
[1756064777673,2.8561,4828.9,4826.8,1.0329]
[1756064777876,3.67143361,4828.8,4826.0,3.2078]
[1756064778073,0.46363361,4828.7,4826.0,3.2078]
[1756064778274,27.359,4829.1,4826.0,3.2078]
[1756064778275,3.2078,4828.3,4826.0,3.2078]
[1756064778467,1.1465,4828.0,4826.0,3.2078]
[1756064778666,3.2078,4827.6,4823.9,5.0129]
[1756064778867,2.8561,4826.5,4823.9,3.2078]
[1756064779078,1.35198238,4828.6,4822.9,1.0329]
[1756064779079,3.2078,4825.1,4823.4,3.2078]
[1756064779271,3.9008,4824.1,4823.1,3.2078]
[1756064779469,3.9008,4824.1,4822.0,3.2078]
[1756064779675,1.1465,4823.9,4822.0,3.2078]
[1756064779976,27.356,4825.4,4821.5,3.2078]
[1756064779977,3.2078,4822.8,4821.5,3.2078]
[1756064780284,2.8561,4823.5,4821.6,0.41489]
[1756064780466,2.8561,4823.5,4821.5,3.2078]
[1756064780669,1.1465,4823.5,4821.5,3.2078]
[1756064780865,2.8561,4822.3,4821.5,3.2078]
[1756064781067,3.9008,4821.5,4820.0,3.2078]
[1756064781272,3.2078,4821.1,4820.0,3.2078]
[1756064781470,1.0447,4821.0,4820.0,3.2078]
[1756064781678,1.1465,4820.4,4818.7,3.2078]
[1756064781876,2.8561,4820.0,4818.7,3.2078]
[1756064782373,1.0447,4819.9,4818.2,3.2078]
[1756064782579,1.0447,4819.9,4818.7,3.2078]
[1756064782776,2.8561,4820.0,4818.7,3.2078]
[1756064783275,2.8561,4821.5,4820.0,1.0329]
[1756064783578,3.2078,4822.3,4820.9,3.2078]
[1756064783779,1.0447,4822.2,4820.4,3.2078]
[1756064784073,1.1465,4821.6,4819.3,3.2078]
[1756064784273,3.2078,4822.3,4820.3,3.2078]
[1756064784274,3.9008,4822.2,4820.3,3.2078]
[1756064784474,1.0447,4820.3,4819.3,3.2078]
[1756064784773,1.0447,4820.3,4818.2,1.8051]
[1756064784774,1.7096,4819.4,4816.5,4.3192]
[1756064785073,44.937,4820.2,4816.5,4.3192]
[1756064785074,3.2078,4817.5,4816.5,4.3192]
[1756064785277,3.2078,4817.5,4817.0,0.03612265]
[1756064785477,27.38,4818.8,4817.1,2.1443]
[1756064785669,1.7096,4819.1,4817.4,1.1114]
[1756064785875,1.7096,4819.1,4817.4,1.52664]
[1756064786074,1.7096,4819.1,4817.6,0.41522]
[1756064786278,1.7096,4819.1,4817.4,1.1114]
[1756064786573,3.2078,4818.7,4817.4,1.1114]
[1756064786771,3.2078,4818.2,4817.4,1.1114]
[1756064787077,3.2078,4819.0,4817.4,1.1114]
[1756064787477,3.2078,4818.5,4817.4,1.1114]
[1756064787674,1.7096,4819.1,4817.3,3.2078]
[1756064787882,1.7096,4819.1,4817.1,3.9785]
[1756064788074,27.38,4820.6,4818.1,0.41518]
[1756064788075,1.0523,4820.3,4818.1,0.41518]
[1756064788279,1.8451,4820.2,4818.8,3.2078]
[1756064788479,5.0529,4821.1,4819.2,1.0029]
[1756064788682,3.2078,4821.6,4821.1,1.154]
[1756064788978,1.8451,4822.7,4821.0,3.2078]
[1756064789178,1.0523,4822.6,4822.0,3.2078]
[1756064789382,1.0523,4822.6,4821.0,3.2078]
[1756064789576,2.4073,4822.5,4821.0,3.2078]
[1756064789779,3.2078,4821.8,4820.5,3.2078]
[1756064789981,3.2078,4821.3,4819.9,3.2078]
[1756064790179,2.8974,4821.2,4819.9,3.2078]
[1756064790684,3.2078,4820.3,4818.1,2.9756]
[1756064790881,3.2078,4820.4,4818.3,21.79625]
[1756064791075,1.35198238,4825.2,4818.1,1.8216]
[1756064791076,1.8451,4821.6,4820.1,1.154]
[1756064791274,1.8451,4821.6,4820.5,3.62277]
[1756064791472,1.8451,4822.6,4821.0,3.2078]
[1756064791779,1.73495673,4826.9,4821.0,3.2078]
[1756064791780,1.0523,4824.1,4822.4,1.154]
[1756064792175,20.167,4825.5,4821.1,3.2078]
[1756064792176,0.5619,4823.8,4821.1,3.2078]
[1756064792374,1.8451,4822.1,4819.8,3.62283]
[1756064792582,1.0523,4821.3,4819.7,1.8216]
[1756064792772,3.2078,4820.8,4819.7,1.0029]
[1756064792980,2.8974,4821.0,4818.7,1.154]
[1756064793178,1.0523,4820.0,4818.7,1.154]
[1756064793384,3.2078,4819.0,4818.0,3.2078]
[1756064793678,3.2078,4819.0,4817.8,1.154]
[1756064793884,3.2078,4819.5,4817.8,1.154]
[1756064794180,3.2078,4819.0,4816.6,6.0323]
[1756064794380,3.2078,4819.0,4816.8,1.154]
[1756064794584,1.8451,4817.8,4815.8,1.154]
[1756064794778,0.5619,4818.1,4815.2,3.2078]
[1756064794779,1.8451,4817.5,4815.2,3.2078]
[1756064794981,3.2078,4815.9,4814.9,1.154]
[1756064795180,1.8451,4816.7,4814.9,1.154]
[1756064795181,3.2078,4816.6,4814.9,1.154]
[1756064795484,3.2078,4817.4,4815.8,1.154]
[1756064795779,1.8451,4817.3,4815.8,1.154]
[1756064796182,1.8451,4817.3,4815.2,3.2078]
[1756064796378,1.0523,4816.6,4814.9,1.154]
[1756064796577,29.882,4818.1,4813.2,3.2078]
[1756064796578,3.2078,4815.0,4813.2,3.2078]
[1756064796782,1.8451,4814.1,4812.2,3.2078]
[1756064797188,3.2078,4814.2,4812.9,2.8245]
[1756064797388,29.895,4814.9,4812.9,2.8245]
[1756064797585,29.895,4814.9,4813.1,1.154]
[1756064797789,3.2078,4815.2,4814.0,3.2078]
[1756064797989,3.2078,4815.2,4814.1,3.9785]
[1756064798188,3.2078,4815.2,4811.4,20.78786]
[1756064798189,3.2078,4814.2,4813.0,2.74422207]
[1756064798378,3.2078,4813.4,4812.1,1.154]
[1756064798681,3.2078,4812.9,4812.1,1.154]
[1756064799300,3.2078,4812.7,4812.1,1.154]
[1756064799587,3.2078,4813.3,4812.2,1.0029]
[1756064799789,3.2078,4813.8,4812.9,0.41562]
[1756064800088,0.4664,4816.1,4814.0,1.8216]
[1756064800089,3.2078,4815.2,4814.0,1.8216]
[1756064800591,1.0523,4815.6,4814.2,3.2078]
[1756064800889,1.0523,4815.6,4814.0,1.8216]
[1756064801388,3.2078,4815.0,4813.0,2.8245]
[1756064801586,3.9882,4814.2,4812.9,3.2078]
[1756064801788,2.8974,4813.7,4811.8,1.154]
[1756064802084,1.0908,4813.6,4812.3,3.2078]
[1756064802287,2.8974,4813.7,4812.3,3.2078]
[1756064802492,2.8974,4813.7,4812.0,3.2402]
[1756064802688,3.2078,4813.8,4812.7,3.2078]
[1756064802893,3.2078,4815.2,4812.7,3.2078]
[1756064803081,3.2078,4815.2,4812.9,3.9785]
[1756064803291,3.2078,4815.2,4813.1,2.9756]
[1756064803592,3.2078,4815.2,4813.2,0.4156]
[1756064803786,5.0529,4815.7,4813.7,2.1569]
[1756064804094,3.2078,4815.2,4813.8,1.0029]
[1756064804293,3.2078,4815.2,4813.2,2.67397164]
[1756064804294,3.2078,4813.9,4812.8,2.8245]
[1756064804590,1.8451,4814.9,4812.8,2.8245]
[1756064804591,3.2078,4814.4,4812.8,2.8245]
[1756064804783,3.2078,4814.8,4812.8,2.8245]
[1756064804984,3.2078,4814.9,4811.8,2.9756]
[1756064805187,3.2078,4813.3,4811.8,1.154]
[1756064805377,3.2078,4812.2,4810.9,1.154]
[1756064805583,3.2078,4812.0,4811.7,0.41573]
[1756064805783,3.2078,4812.0,4811.6,3.9785]
[1756064805984,3.2078,4812.0,4811.0,1.154]
[1756064806389,3.2078,4812.8,4811.1,1.8216]
[1756064806584,3.2078,4812.8,4811.5,5.3647]
[1756064806786,3.2078,4812.8,4809.6,51.75231]
[1756064806787,3.2078,4812.8,4811.4,3.2078]
[1756064806991,3.2078,4812.2,4810.5,1.154]
[1756064807186,3.2078,4811.6,4809.7,1.8216]
[1756064807482,3.2078,4811.6,4809.9,0.41588]
[1756064807687,29.917,4813.3,4809.8,1.0029]
[1756064807688,3.2078,4813.6,4813.0,0.41562]
[1756064807882,29.917,4815.4,4812.8,3.2078]
[1756064807883,3.2078,4814.1,4812.8,3.2078]
[1756064808084,1.0908,4815.0,4812.9,3.2167]
[1756064808282,25.427,4817.0,4811.7,3.2078]
[1756064808283,2.1431,4814.0,4811.7,3.2078]
[1756064808581,3.9882,4813.5,4811.7,3.2078]
[1756064808793,3.2078,4813.1,4812.2,3.2078]
[1756064808986,3.2078,4814.5,4812.7,3.2078]
[1756064809183,3.2078,4814.5,4812.3,3.2167]
[1756064809184,1.0523,4814.4,4812.3,2.2138]
[1756064809387,3.2078,4814.0,4812.1,3.2078]
[1756064809588,3.9882,4813.9,4812.1,3.2078]
[1756064809788,3.9882,4813.9,4811.7,1.0029]
[1756064809789,3.2078,4812.7,4811.7,1.0029]
[1756064810087,3.2078,4813.5,4812.1,0.4157]
[1756064810286,3.2078,4814.3,4813.2,0.4156]
[1756064810489,3.2078,4814.3,4813.3,1.0029]
[1756064810697,3.2078,4814.3,4813.5,0.41558]
[1756064810993,3.2078,4815.9,4814.9,1.0029]
[1756064811389,3.2078,4817.9,4815.8,3.2078]
[1756064811588,0.1,4820.2,4815.4,1.154]
[1756064811589,3.2078,4819.9,4817.1,3.2167]
[1756064811787,0.1,4820.2,4818.5,3.2078]
[1756064811988,0.45920876,4820.1,4819.7,3.2078]
[1756064812196,3.9882,4820.1,4819.1,3.2078]
[1756064812496,2.9359,4820.1,4818.4,2.0627]
[1756064812791,0.1,4820.2,4819.1,3.2078]
[1756064812993,0.1,4820.2,4818.8,1.154]
[1756064813388,3.2078,4819.7,4817.8,1.0029]
[1756064813588,3.2078,4819.5,4818.0,3.2078]
[1756064813788,1.0908,4819.4,4817.8,1.0029]
[1756064813988,5.0529,4819.3,4817.5,0.2123]
[1756064814190,5.0529,4819.3,4817.3,3.2078]
[1756064814391,3.2078,4818.3,4816.8,3.2078]
[1756064814588,3.9882,4817.5,4815.5,3.2078]
[1756064814789,3.2078,4817.1,4815.5,3.2078]
[1756064814990,3.2078,4816.6,4815.1,1.154]
[1756064815291,3.2078,4817.2,4815.4,0.41541]
[1756064815591,3.2078,4817.3,4815.1,1.154]
[1756064815791,3.9882,4817.2,4815.1,1.154]
[1756064816095,33.632,4818.1,4814.5,3.2078]
[1756064816096,3.2078,4816.2,4814.5,3.2078]
[1756064816287,33.632,4818.1,4811.1,0.21192738]
[1756064816288,3.2078,4815.7,4814.0,3.2078]
[1756064816494,1.0908,4815.5,4814.0,3.2078]
[1756064817687,1.0908,4815.5,4811.6,33.618]
[1756064817688,3.2078,4814.6,4813.2,3.2078]
[1756064818493,1.1104,4814.8,4813.2,3.2078]
[1756064818494,3.2078,4814.1,4813.2,3.2078]
[1756064818695,1.1104,4814.0,4812.1,3.2078]
[1756064818896,3.2078,4813.3,4811.9,0.9948]
[1756064819091,1.1104,4814.0,4812.1,3.2078]
[1756064819291,1.1104,4814.0,4812.2,0.9948]
[1756064819493,0.9656,4813.8,4812.1,3.2078]
[1756064819695,1.1104,4813.7,4812.1,3.2078]
[1756064819891,1.1104,4813.7,4812.6,3.2078]
[1756064820294,1.1104,4813.7,4812.1,0.9948]
[1756064820496,1.1104,4813.7,4811.9,0.2124]
[1756064820497,1.8527,4813.5,4811.3,3.2078]
[1756064820792,3.9287,4813.3,4811.3,3.2078]
[1756064820998,3.9287,4813.3,4811.0,0.2124]
[1756064821391,3.9287,4813.3,4808.8,20.79899]
[1756064821392,4.0,4813.2,4810.2,3.2078]
[1756064821594,1.8527,4810.7,4808.9,2.0562]
[1756064821790,1.8527,4810.7,4809.5,3.2078]
[1756064822098,1.8527,4810.7,4808.9,5.264]
[1756064822296,29.925,4812.4,4808.9,3.2078]
[1756064822297,0.9656,4810.4,4808.9,3.2078]
[1756064822595,0.46007635,4810.3,4808.9,3.2078]
[1756064822895,2.9631,4810.1,4808.9,3.2078]
[1756064823096,2.9631,4809.7,4808.3,0.2867]
[1756064823297,3.9287,4808.6,4806.3,4.2692]
[1756064823597,3.2078,4806.7,4805.7,3.2078]
[1756064823797,6.1709,4806.7,4805.2,3.2078]
[1756064824005,1.8527,4806.0,4804.2,3.2078]
[1756064824190,0.4092,4804.5,4801.0,1.8565]
[1756064824392,29.935,4807.7,4798.3,22.67007423]
[1756064824393,1.1104,4801.4,4799.5,3.2078]
[1756064824594,3.2078,4801.7,4798.3,1.8565]
[1756064824595,0.4092,4801.0,4800.4,2.5388554]
[1756064824790,1.5196,4800.5,4799.6,2.7620554]
[1756064825097,0.4092,4800.3,4795.3,20.85766]
[1756064825294,0.4092,4800.1,4798.7,0.41685]
[1756064825491,0.4092,4801.1,4798.9,0.41684]
[1756064825698,0.9879,4802.4,4799.2,2.0562]
[1756064825904,3.2078,4802.2,4801.1,3.2078]
[1756064826094,1.1104,4803.4,4800.9,0.41666]
[1756064826293,1.1104,4803.4,4801.3,3.8502]
[1756064826492,3.2078,4803.8,4801.4,0.6424]
[1756064826696,3.2078,4804.4,4802.1,0.6424]
[1756064826994,1.1104,4804.4,4801.5,2.74622128]
[1756064827190,1.1104,4804.4,4802.2,2.74622128]
[1756064827392,1.1104,4804.4,4802.6,0.41652]
[1756064827599,3.2078,4804.8,4802.9,3.2078]
[1756064827800,3.2078,4806.5,4804.7,3.2078]
[1756064828009,1.1104,4806.4,4804.7,3.2078]
[1756064828210,2.9631,4807.1,4804.3,0.41637]
[1756064828499,2.9631,4807.1,4803.3,33.566]
[1756064828500,2.9631,4807.1,4806.1,3.2078]
[1756064828702,2.9631,4807.1,4805.7,0.41625]
[1756064828897,3.2078,4807.5,4805.8,0.6424]
[1756064829198,3.2078,4806.5,4804.4,3.2078]
[1756064829399,3.2078,4807.5,4806.0,0.6424]
[1756064829605,29.969,4810.4,4806.6,3.2078]
[1756064829606,1.8527,4809.1,4806.6,3.2078]
[1756064829808,3.2078,4809.8,4807.5,1.7038]
[1756064830103,0.1,4810.2,4808.2,3.5603]
[1756064830296,2.076,4810.1,4808.8,3.2078]
[1756064830496,3.9287,4810.1,4807.6,2.68061855]
[1756064830702,1.1104,4809.8,4806.6,3.2078]
[1756064830999,0.1,4810.2,4805.2,3.2078]
[1756064831000,3.9287,4807.7,4805.2,3.2078]
[1756064831208,3.9287,4807.7,4805.3,1.8565]
[1756064831398,3.9287,4807.7,4805.4,0.6424]
[1756064831794,3.9287,4807.7,4805.9,1.8565]
[1756064831795,1.1104,4807.7,4805.9,1.8565]
[1756064831999,3.2078,4809.1,4806.5,20.809]
[1756064832305,3.2078,4810.5,4808.7,0.41599]
[1756064832502,3.2078,4810.5,4808.9,1.8565]
[1756064832801,1.1104,4812.0,4810.0,0.3725]
[1756064833003,1.1104,4814.0,4811.4,0.41575]
[1756064833195,0.9656,4813.7,4802.6,20.82592]
[1756064833403,29.974,4814.7,4800.1,187.339]
[1756064833404,0.9656,4813.1,4807.4,0.9948]
[1756064833701,1.8527,4812.2,4806.5,0.9948]
[1756064833904,3.9287,4812.4,4806.5,0.41618]
[1756064834108,2.076,4811.9,4808.2,0.41603]
[1756064834302,2.9631,4812.3,4808.3,0.9948]
[1756064834503,3.9287,4812.2,4808.3,0.9948]
[1756064834703,2.9631,4812.2,4809.6,1.41071]
[1756064835003,1.1104,4812.2,4809.7,0.6563]
[1756064835209,1.1104,4812.2,4809.7,2.68406399]
[1756064835510,2.076,4811.9,4809.1,0.9948]
[1756064835725,1.8527,4813.0,4810.7,0.6563]
[1756064836010,1.1104,4815.2,4812.9,1.6511]
[1756064836201,0.9656,4815.0,4811.9,0.9948]
[1756064836400,2.849,4817.6,4810.8,1.6511]
[1756064836401,0.9656,4814.3,4810.8,1.6511]
[1756064836607,30.4589727,4814.2,4810.8,1.6511]
[1756064836804,30.4589727,4814.2,4809.0,29.971]
[1756064836805,2.8183,4814.0,4809.8,0.6563]
[1756064837009,3.9287,4813.8,4808.7,1.6511]
[1756064837210,1.1104,4813.4,4808.8,0.9948]
[1756064837505,0.9656,4812.9,4809.4,0.6563]
[1756064837705,2.9631,4812.6,4809.5,0.9948]
[1756064837908,2.9631,4813.7,4810.0,20.79411]
[1756064838105,1.1104,4814.9,4811.2,20.78903]
[1756064838302,1.8527,4816.9,4813.1,0.9948]
[1756064838507,0.48821254,4816.8,4813.5,0.9948]
[1756064838804,1.1104,4817.3,4815.1,0.41544]
[1756064839007,1.1104,4817.3,4814.1,1.6511]
[1756064839210,2.8183,4817.2,4814.1,1.6511]
[1756064839407,1.1104,4817.1,4814.1,1.6511]
[1756064839604,1.1104,4817.1,4813.2,0.6563]
[1756064839605,1.8527,4816.9,4813.2,0.6563]
[1756064839807,1.1104,4816.7,4813.3,0.9948]
[1756064840007,1.1104,4818.4,4813.8,0.6563]
[1756064840206,1.1104,4818.4,4815.1,0.9948]
[1756064840402,1.1104,4818.4,4815.7,0.6563]
[1756064840612,1.1104,4818.4,4816.3,0.9948]
[1756064840807,1.1104,4818.4,4816.4,0.6563]
[1756064841302,2.8183,4818.3,4814.0,1.6511]
[1756064841502,3.9287,4818.4,4814.4,1.6511]
[1756064841710,2.8183,4818.1,4816.0,3.2078]
[1756064841903,3.2078,4816.9,4815.3,3.2078]
[1756064842107,7.1365,4817.9,4815.5,3.2078]
[1756064842309,7.1365,4817.9,4816.0,3.2078]
[1756064842615,0.9656,4818.8,4816.6,0.9948]
[1756064842812,2.076,4818.8,4816.6,0.9948]
[1756064843010,1.1104,4818.8,4816.7,1.8565]
[1756064843319,3.2078,4818.9,4817.7,0.41521]
[1756064843519,0.1,4820.2,4818.0,1.8565]
[1756064843719,1.2104,4820.2,4818.6,3.2078]
[1756064844014,1.2104,4820.2,4816.8,2.70385801]
[1756064844015,1.1104,4819.3,4817.0,5.0643]
[1756064844211,2.076,4818.5,4816.4,3.2078]
[1756064844417,34.053,4820.2,4814.8,5.0643]
[1756064844418,3.2078,4817.0,4814.8,5.0643]
[1756064844616,1.1104,4816.9,4814.8,5.0643]
[1756064844816,0.9656,4816.4,4814.8,3.2078]
[1756064845119,2.076,4815.9,4813.8,1.8565]
[1756064845323,3.2078,4816.7,4814.0,1.8565]
[1756064845509,3.2078,4817.3,4814.6,3.2078]
[1756064845908,3.9287,4816.7,4813.7,3.2078]
[1756064846107,3.2078,4815.8,4814.3,1.8565]
[1756064846416,3.2078,4815.9,4814.7,3.2078]
[1756064846614,3.2078,4815.9,4812.6,2.71305215]
[1756064846615,2.076,4815.3,4813.6,3.2078]
[1756064846821,3.9287,4813.6,4811.2,1.8565]
[1756064847111,3.2078,4812.4,4811.3,0.9948]
[1756064847316,1.1048,4813.0,4811.3,2.69496698]
[1756064847515,5.0605,4815.5,4812.9,3.2078]
[1756064847713,3.2078,4815.5,4814.6,1.0172]
[1756064847915,29.934,4819.4,4815.2,1.8439]
[1756064847916,3.2078,4817.4,4815.2,1.8439]
[1756064848111,1.0399,4817.6,4815.2,1.8439]
[1756064848411,3.2078,4818.7,4817.1,0.41526]
[1756064848617,1.0834,4819.9,4816.3,29.934]
[1756064848813,1.0399,4819.8,4816.3,29.934]
[1756064849020,2.8439,4819.7,4816.3,29.934]
[1756064849215,2.1233,4819.6,4816.4,2.72774566]
[1756064849515,4.2912,4819.0,4817.5,3.2078]
[1756064849710,1.0834,4819.0,4817.2,1.0172]
[1756064849911,1.0834,4819.0,4815.4,20.77047]
[1756064849912,1.0834,4820.0,4818.5,1.0172]
[1756064850113,0.1,4820.2,4819.3,2.1329]
[1756064850313,0.1,4820.2,4820.0,3.2078]
[1756064850513,0.1,4820.2,4820.0,4.225]
[1756064850720,2.8439,4820.1,4818.7,1.0172]
[1756064850913,2.1233,4820.0,4818.7,3.2078]
[1756064851209,1.0834,4820.0,4817.3,3.2078]
[1756064851413,1.0834,4819.4,4817.3,3.2078]
[1756064851614,2.8439,4818.8,4816.0,3.2078]
[1756064851814,1.7605,4819.8,4816.7,3.2078]
[1756064852015,1.7605,4819.8,4817.7,3.2078]
[1756064852016,1.0834,4819.7,4817.7,3.2078]
[1756064852217,1.0834,4819.7,4817.1,1.0172]
[1756064852218,0.1,4820.2,4818.9,3.2078]
[1756064852418,0.1,4820.2,4819.9,2.0038]
[1756064852620,2.8439,4821.8,4820.1,2.1636]
[1756064853011,2.8439,4821.8,4820.5,3.2078]
[1756064853414,6.8439,4821.8,4820.5,3.2078]
[1756064853610,3.8838,4821.0,4819.5,3.2078]
[1756064854021,3.8838,4821.0,4818.5,1.0172]
[1756064854022,1.0834,4820.5,4818.6,3.2078]
[1756064854221,1.0834,4820.5,4819.1,3.2078]
[1756064854521,1.0834,4821.4,4820.0,3.2078]
[1756064854714,3.2078,4821.1,4820.0,3.2078]
[1756064854916,1.7605,4820.9,4818.7,3.2078]
[1756064855220,2.8439,4819.9,4817.6,3.2078]
[1756064855415,2.1233,4819.5,4816.2,3.2078]
[1756064855724,1.0834,4817.9,4816.3,3.2078]
[1756064856020,1.0834,4817.9,4817.4,3.2078]
[1756064856321,1.0834,4817.6,4815.6,3.2078]
[1756064856621,3.2078,4817.0,4814.7,3.2078]
[1756064856921,3.8838,4816.4,4814.7,3.2078]
[1756064857117,3.2078,4815.9,4814.7,3.2078]
[1756064857321,2.8439,4816.4,4815.0,3.2078]
[1756064857521,1.0834,4815.8,4814.2,1.0172]
[1756064857725,1.0834,4815.8,4814.2,4.225]
[1756064857920,1.0834,4815.8,4814.2,1.0172]
[1756064858126,1.0834,4815.8,4813.9,0.9866]
[1756064858420,1.0834,4815.8,4814.4,1.0172]
[1756064858619,3.2078,4816.7,4815.6,3.2078]
[1756064858822,1.0834,4817.1,4815.7,3.2078]
[1756064859020,1.0834,4817.1,4815.2,2.0863]
[1756064859021,1.0834,4817.1,4816.3,3.2078]
[1756064859235,1.0834,4818.0,4816.8,3.2078]
[1756064859528,0.46396306,4817.9,4817.3,3.2078]
[1756064859722,0.46396306,4817.8,4816.7,0.4153]
[1756064859914,3.2078,4819.7,4817.7,3.2078]
[1756064860229,2.8439,4819.0,4816.8,3.2078]
[1756064860417,3.2078,4818.7,4817.0,3.2078]
[1756064860620,0.46416341,4818.6,4818.0,3.2078]
[1756064860922,0.46416341,4818.5,4817.9,2.0038]
[1756064861122,0.46416341,4818.4,4817.6,3.2078]
[1756064861320,0.46416341,4818.3,4817.0,0.9866]
[1756064861519,1.7605,4819.0,4815.0,1.0691]
[1756064861520,2.1233,4817.3,4815.0,1.0691]
[1756064861722,2.22466341,4817.2,4815.5,1.0172]
[1756064861926,2.39188238,4818.2,4815.5,1.0172]
[1756064861927,0.46416341,4817.1,4815.8,3.2078]
[1756064862125,0.46416341,4817.0,4815.8,3.2078]
[1756064862320,1.35198238,4818.1,4816.6,3.2078]
[1756064862626,1.7605,4817.8,4814.9,3.2078]
[1756064862933,29.912,4818.6,4814.9,3.2078]
[1756064862934,2.81413405,4817.3,4814.9,3.2078]
[1756064863123,3.2078,4816.9,4815.0,1.575]
[1756064863423,3.2078,4817.5,4816.1,1.00375]
[1756064863727,3.2078,4818.1,4816.2,0.41535]
[1756064863927,3.2078,4818.1,4817.0,3.2078]
[1756064864516,1.35198238,4818.2,4815.7,4.1944]
[1756064864722,1.0399,4817.8,4815.7,4.1944]
[1756064864927,1.0399,4817.8,4815.7,4.60979]
[1756064865224,1.0834,4818.1,4816.5,4.7828]
[1756064865428,3.2078,4818.8,4817.2,0.5884]
[1756064865429,1.35198238,4818.3,4817.2,0.5884]
[1756064865629,1.7605,4818.0,4816.6,3.2078]
[1756064865924,1.0399,4818.7,4815.6,0.9866]
[1756064865925,1.7605,4817.2,4815.6,3.2078]
[1756064866122,3.2078,4816.3,4814.3,0.41551]
[1756064866319,1.0834,4816.2,4814.1,0.09555166]
[1756064866616,1.0834,4814.6,4813.0,3.2078]
[1756064866820,3.2078,4814.2,4813.0,3.2078]
[1756064867021,1.7605,4814.0,4813.0,3.2078]
[1756064867221,1.7605,4814.0,4812.1,1.6705]
[1756064867419,1.7605,4814.0,4812.3,0.41568]
[1756064867622,1.7605,4814.0,4812.4,3.2078]
[1756064867817,1.0834,4814.8,4813.0,0.41562]
[1756064868025,1.0399,4815.7,4814.0,0.6839]
[1756064868227,2.43538238,4816.9,4815.5,0.4154]
[1756064868423,1.7605,4817.0,4815.8,3.2078]
[1756064868424,1.35198238,4817.0,4815.8,3.2078]
[1756064868624,1.35198238,4817.4,4816.2,0.41534]
[1756064868826,1.73495673,4818.6,4818.4,0.0174]
[1756064869026,1.73495673,4818.6,4818.3,3.2078]
[1756064869218,1.73495673,4819.4,4818.4,4.41516]
[1756064869418,1.73495673,4819.3,4818.8,3.2078]
[1756064869622,1.73495673,4819.4,4818.8,3.2078]
[1756064870026,1.73495673,4819.2,4817.4,3.2078]
[1756064870221,1.0834,4819.2,4817.9,3.2078]
[1756064870426,2.8439,4819.1,4817.4,3.2078]
[1756064870629,1.0399,4819.0,4817.2,3.2078]
[1756064870924,2.8004,4818.8,4817.1,3.2078]
[1756064871127,3.2078,4818.9,4815.7,3.2078]
[1756064871328,0.1,4820.2,4815.7,3.2078]
[1756064871329,3.2078,4817.8,4815.7,3.2078]
[1756064871633,3.2078,4817.7,4815.8,3.2078]
[1756064871828,2.1233,4817.8,4816.5,0.41532]
[1756064872029,2.1233,4817.8,4815.8,3.2078]
[1756064872228,2.1233,4817.8,4816.3,3.2078]